bitfinex/quotes_BTCUSD_20251116
["timestamp","ask_amount","ask_price","bid_price","bid_amount"]
[1763290978491,0.323,96553.0,96552.0,0.04968]
[1763290978697,0.36683162,96553.0,96552.0,0.04972515]
[1763290978904,0.38298162,96553.0,96552.0,0.04972515]
[1763290979508,0.09109906,96553.0,96552.0,0.04972515]
[1763290979708,0.11180997,96553.0,96552.0,0.04972515]
[1763290979914,0.11280997,96553.0,96552.0,0.04972515]
[1763290980621,0.11380997,96553.0,96552.0,0.04972515]
[1763290985369,0.09309906,96553.0,96552.0,0.04972515]
[1763290986283,0.11380997,96553.0,96552.0,0.04972515]
[1763290987986,0.09309906,96553.0,96552.0,0.04972515]
[1763290994453,0.41609906,96553.0,96552.0,4.515e-05]
[1763291000015,0.39175906,96553.0,96552.0,0.04972515]
[1763291021242,0.39175906,96553.0,96552.0,4.515e-05]
[1763291023511,0.39175906,96553.0,96552.0,0.04972515]
[1763291023661,0.39175906,96553.0,96552.0,4.515e-05]
[1763291024223,0.39175906,96553.0,96552.0,0.04972515]
[1763291037289,0.39175906,96553.0,96552.0,4.515e-05]
[1763291039302,0.39175906,96553.0,96552.0,0.04972515]
[1763291041441,0.4351778,96553.0,96552.0,4.515e-05]
[1763291041886,0.4351778,96553.0,96552.0,0.04972515]
[1763291042076,0.4351778,96553.0,96552.0,4.515e-05]
[1763291046210,0.39175906,96553.0,96552.0,0.04972515]
[1763291049181,0.39176731,96553.0,96552.0,0.04972515]
[1763291054004,0.39161063,96553.0,96552.0,0.04972515]
[1763291055307,0.39161063,96553.0,96552.0,4.515e-05]
[1763291055657,0.39162116,96553.0,96552.0,4.515e-05]
[1763291065211,0.4350399,96553.0,96552.0,4.515e-05]
[1763291069626,0.4349399,96553.0,96552.0,4.515e-05]
[1763291079440,0.4916463,96553.0,96552.0,4.515e-05]
[1763291079816,0.44464731,96553.0,96552.0,4.515e-05]
[1763291091803,0.44264731,96553.0,96552.0,4.515e-05]
[1763291092026,0.44464731,96553.0,96552.0,4.515e-05]
[1763291092378,0.4670157,96553.0,96552.0,4.515e-05]
[1763291094849,0.4650157,96553.0,96552.0,4.515e-05]
[1763291095031,0.4660157,96553.0,96552.0,4.515e-05]
[1763291095236,0.4680157,96553.0,96552.0,4.515e-05]
[1763291095478,0.4660157,96553.0,96552.0,4.515e-05]
[1763291095680,0.4650157,96553.0,96552.0,4.515e-05]
[1763291095885,0.4670157,96553.0,96552.0,4.515e-05]
[1763291096103,0.4670157,96553.0,96524.0,0.04968]
[1763291096104,0.04341874,96549.0,96524.0,0.04968]
[1763291096416,0.01178,96525.0,96521.0,0.0002427]
[1763291096569,0.02763,96522.0,96521.0,0.0499227]
[1763291096793,0.0470404,96522.0,96521.0,0.0499227]
[1763291097189,0.07816717,96522.0,96521.0,0.0499227]
[1763291099224,0.05875677,96522.0,96521.0,0.0499227]
[1763291099432,0.0781286,96522.0,96521.0,0.0499227]
[1763291101038,0.05875677,96522.0,96521.0,0.0499227]
[1763291103464,0.03112677,96522.0,96521.0,0.0002427]
[1763291103636,0.03112677,96522.0,96521.0,0.0499227]
[1763291104039,0.04749677,96522.0,96521.0,0.0499227]
[1763291105078,0.06820768,96522.0,96521.0,0.0499227]
[1763291107390,0.04749677,96522.0,96521.0,0.0499227]
[1763291108277,0.04749677,96522.0,96521.0,0.0002427]
[1763291108495,0.06820768,96522.0,96521.0,0.0002427]
[1763291109518,0.07020768,96522.0,96521.0,0.0002427]
[1763291114424,0.17350609,96522.0,96521.0,0.0002427]
[1763291114665,0.45597232,96522.0,96521.0,0.0002427]
[1763291114843,0.43526141,96522.0,96521.0,0.0002427]
[1763291117180,0.43426141,96522.0,96521.0,0.0002427]
[1763291117776,0.43526141,96522.0,96521.0,0.0002427]
[1763291118077,0.48000055,96522.0,96521.0,0.0002427]
[1763291121689,0.49617604,96521.0,96520.0,0.0004]
[1763291121901,0.54371194,96521.0,96520.0,0.0004]
[1763291122951,0.54571194,96521.0,96520.0,0.0004]
[1763291123362,0.55539101,96521.0,96520.0,0.0004]
[1763291123856,0.54571194,96521.0,96520.0,0.0004]
[1763291125540,0.60460881,96521.0,96520.0,0.0004]
[1763291125776,0.54571194,96521.0,96520.0,0.0004]
[1763291126706,0.55539496,96521.0,96520.0,0.0004]
[1763291127505,0.57770376,96521.0,96520.0,0.0004]
[1763291128271,0.57772195,96521.0,96520.0,0.0004]
[1763291128493,0.63981982,96521.0,96520.0,0.0004]
[1763291128757,0.51006252,96521.0,96520.0,0.0004]
[1763291129447,0.44796465,96521.0,96520.0,0.0004]
[1763291133785,0.44696465,96521.0,96520.0,0.0004]
[1763291133986,0.44596465,96521.0,96520.0,0.0004]
[1763291134478,0.44696465,96521.0,96520.0,0.0004]
[1763291135071,0.44796465,96521.0,96520.0,0.0004]
[1763291135297,0.49677202,96521.0,96520.0,0.0004]
[1763291135698,0.50092326,96521.0,96520.0,0.0004]
[1763291135897,0.45211589,96521.0,96520.0,0.0004]
[1763291139314,0.45213399,96521.0,96520.0,0.0004]
[1763291146542,0.45218062,96521.0,96520.0,0.0004]
[1763291149849,0.45218062,96521.0,96512.0,0.00024257]
[1763291149850,0.38641872,96520.0,96512.0,0.00024257]
[1763291150035,0.49224657,96513.0,96512.0,0.00024257]
[1763291150234,0.54366721,96513.0,96512.0,0.00024257]
[1763291150638,0.54866721,96513.0,96512.0,0.00024257]
[1763291151034,0.60917993,96513.0,96512.0,0.00029407]
[1763291151702,0.61017993,96513.0,96512.0,0.00029407]
[1763291152669,0.61117993,96513.0,96512.0,0.00029407]
[1763291156688,0.61117993,96513.0,96501.0,0.005]
[1763291156689,0.36641874,96509.0,96501.0,0.005]
[1763291156879,0.07042874,96502.0,96501.0,0.0050451]
[1763291157086,0.09952248,96502.0,96501.0,0.0050451]
[1763291157234,0.44323339,96502.0,96501.0,0.0050451]
[1763291157433,0.44484938,96502.0,96501.0,0.0050451]
[1763291157632,0.44989448,96502.0,96501.0,0.0050451]
[1763291158461,0.45089448,96502.0,96501.0,0.0050451]
[1763291158667,0.44989448,96502.0,96501.0,0.0050451]
[1763291158914,0.49498393,96502.0,96501.0,0.0050451]
[1763291159092,0.49698393,96502.0,96501.0,0.0050451]
[1763291159463,0.49898393,96502.0,96501.0,0.0050451]
[1763291160642,0.52683553,96502.0,96501.0,0.0050451]
[1763291160989,0.52683553,96502.0,96480.0,0.0004]
[1763291160990,0.04341874,96499.0,96480.0,0.0004]
[1763291161198,0.38641872,96490.0,96480.0,0.0004]
[1763291161552,0.38641872,96490.0,96461.0,0.00016807]
[1763291161553,0.04341874,96479.0,96461.0,0.00016807]
[1763291161857,0.49267657,96471.0,96461.0,0.00016807]
[1763291162480,0.50734569,96471.0,96461.0,0.00016807]
[1763291162886,0.50734569,96471.0,96470.0,0.00153228]
[1763291163274,0.56029026,96471.0,96470.0,0.00153228]
[1763291164256,0.50834569,96471.0,96470.0,0.00153228]
[1763291165033,0.5286962,96471.0,96470.0,0.00153228]
[1763291165451,0.50934569,96471.0,96470.0,0.00153228]
[1763291165666,0.52869043,96471.0,96470.0,0.00153228]
[1763291167231,0.52868913,96471.0,96470.0,0.00153228]
[1763291167465,0.58276804,96471.0,96470.0,0.00153228]
[1763291168224,0.5827644,96471.0,96470.0,0.00153228]
[1763291168670,0.38641872,96470.0,96461.0,0.00016807]
[1763291168878,0.07085874,96462.0,96461.0,0.00016807]
[1763291169079,0.46018367,96462.0,96461.0,0.00016807]
[1763291169287,0.43947276,96462.0,96461.0,0.00016807]
[1763291169886,0.43947276,96462.0,96461.0,0.00061982]
[1763291170288,0.45882157,96462.0,96461.0,0.00061982]
[1763291170703,0.41320755,96462.0,96461.0,0.00061982]
[1763291171351,0.41520755,96462.0,96461.0,0.00061982]
[1763291171550,0.41420755,96462.0,96461.0,0.00061982]
[1763291171848,0.41320755,96462.0,96461.0,0.00061982]
[1763291172054,0.41420755,96462.0,96461.0,0.00061982]
[1763291172264,0.45801031,96462.0,96461.0,0.00061982]
[1763291172409,0.41836168,96462.0,96461.0,0.00061982]
[1763291172614,0.41736168,96462.0,96461.0,0.00061982]
[1763291173009,0.41936168,96462.0,96461.0,0.00061982]
[1763291173642,0.42036168,96462.0,96461.0,0.00061982]
[1763291174203,0.41836168,96462.0,96461.0,0.00061982]
[1763291174347,0.41836168,96462.0,96461.0,0.00086285]
[1763291174546,0.36641874,96461.0,96420.0,0.0004]
[1763291174749,0.40242847,96461.0,96420.0,0.0004]
[1763291175392,0.04341874,96459.0,96420.0,0.0004]
[1763291175619,0.49289657,96451.0,96420.0,0.0004]
[1763291175903,0.51224538,96451.0,96420.0,0.0004]
[1763291176357,0.56762464,96451.0,96420.0,0.0004]
[1763291176595,0.37641873,96450.0,96420.0,0.0004]
[1763291176801,0.07107874,96431.0,96420.0,0.0004]
[1763291177591,0.07523386,96431.0,96420.0,0.0004]
[1763291177938,0.09739569,96431.0,96420.0,0.0004]
[1763291178139,0.09639569,96431.0,96420.0,0.0004]
[1763291178565,0.09839569,96431.0,96420.0,0.0004]
[1763291179954,0.05497695,96431.0,96430.0,0.05008]
[1763291180152,0.00660604,96431.0,96430.0,0.05008]
[1763291180359,0.00660604,96431.0,96430.0,0.05091631]
[1763291180563,0.00660604,96431.0,96430.0,0.05]
[1763291180768,0.00145092,96431.0,96430.0,0.05]
[1763291180969,0.00045092,96431.0,96430.0,0.05]
[1763291183466,0.00045092,96431.0,96430.0,0.05192]
[1763291184098,0.00045092,96431.0,96430.0,0.05]
[1763291187861,0.02591506,96462.0,96461.0,0.05]
[1763291188070,0.0259121,96480.0,96461.0,0.00013492]
[1763291188278,0.05705493,96480.0,96479.0,0.05]
[1763291188481,0.03114283,96480.0,96479.0,0.05]
[1763291188657,0.39360283,96480.0,96479.0,0.05]
[1763291189698,0.39460283,96480.0,96479.0,0.05]
[1763291190395,0.07260283,96480.0,96479.0,0.05]
[1763291191355,0.07260283,96480.0,96461.0,0.00013492]
[1763291191356,0.07260283,96480.0,96478.0,0.05]
[1763291191555,0.02458,96479.0,96478.0,0.05]
[1763291191782,0.03962,96479.0,96478.0,0.05]
[1763291192749,0.04062,96479.0,96478.0,0.05]
[1763291193510,0.04162,96479.0,96478.0,0.05]
[1763291193915,0.06753237,96479.0,96478.0,0.05]
[1763291194119,0.06753237,96479.0,96473.0,0.05]
[1763291194328,0.02591264,96478.0,96473.0,0.05]
[1763291194530,0.02591264,96478.0,96477.0,0.05]
[1763291195054,0.04095264,96478.0,96477.0,0.05]
[1763291196492,0.04195264,96478.0,96477.0,0.05]
[1763291196610,0.04295264,96478.0,96461.0,0.00013492]
[1763291196835,0.02458,96477.0,96473.0,0.05]
[1763291197039,0.04005563,96476.0,96473.0,0.05]
[1763291197252,0.01504,96474.0,96473.0,0.05]
[1763291197473,0.05464901,96474.0,96473.0,0.05]
[1763291197907,0.40879223,96474.0,96473.0,0.05]
[1763291198143,0.06555011,96474.0,96473.0,0.05]
[1763291199856,0.06655011,96474.0,96473.0,0.05]
[1763291201730,0.06655011,96474.0,96461.0,0.00013492]
[1763291201942,0.01156,96471.0,96469.0,0.05]
[1763291202330,0.0266,96470.0,96469.0,0.05]
[1763291206141,0.0266,96470.0,96465.0,0.05]
[1763291206344,0.02458,96469.0,96465.0,0.05]
[1763291206543,0.02458,96469.0,96461.0,0.00013492]
[1763291206544,0.01504,96466.0,96461.0,0.00013492]
[1763291206837,0.01504,96462.0,96461.0,0.00013492]
[1763291207582,0.04618797,96462.0,96461.0,0.00013492]
[1763291209266,0.43199037,96462.0,96461.0,0.00013492]
[1763291217780,0.45432734,96462.0,96461.0,0.00013492]
[1763291220103,0.46401752,96462.0,96461.0,0.00013492]
[1763291220264,0.45432734,96462.0,96461.0,0.00013492]
[1763291221196,0.45532734,96462.0,96461.0,0.00013492]
[1763291221365,0.46501888,96462.0,96461.0,0.00013492]
[1763291221562,0.46601888,96462.0,96461.0,0.00013492]
[1763291222150,0.49346754,96462.0,96461.0,0.00013492]
[1763291222927,0.46601888,96462.0,96461.0,0.00013492]
[1763291226623,0.46598102,96462.0,96461.0,0.00013492]
[1763291227013,0.46498102,96462.0,96461.0,0.00013492]
[1763291227253,0.46598102,96462.0,96461.0,0.00013492]
[1763291227470,0.46498102,96462.0,96461.0,0.00013492]
[1763291227650,0.46598102,96462.0,96461.0,0.00013492]
[1763291228084,0.43396494,96462.0,96461.0,0.00013492]
[1763291228286,0.43396494,96462.0,96461.0,0.05013492]
[1763291228416,0.43396494,96462.0,96461.0,0.00013492]
[1763291235237,0.44365714,96462.0,96461.0,0.00013492]
[1763291235417,0.46598792,96462.0,96461.0,0.00013492]
[1763291238078,0.04341874,96457.0,96444.0,0.05]
[1763291238250,0.04341874,96455.0,96444.0,0.05]
[1763291238449,0.02816,96445.0,96444.0,0.05]
[1763291245231,0.02816,96445.0,96419.0,0.08680376]
[1763291245232,0.04341874,96444.0,96409.0,0.00192]
[1763291245430,0.04532908,96443.0,96440.0,0.05]
[1763291245611,0.04532935,96442.0,96440.0,0.05]
[1763291245795,0.03600704,96441.0,96409.0,0.00192]
[1763291246001,0.04532989,96440.0,96438.0,0.05]
[1763291246204,0.01940704,96439.0,96438.0,0.05]
[1763291246405,0.03600704,96439.0,96438.0,0.05]
[1763291246829,0.06193016,96439.0,96438.0,0.05]
[1763291248641,0.03600704,96439.0,96438.0,0.05]
[1763291248835,0.06193016,96439.0,96438.0,0.05]
[1763291254271,0.01940704,96439.0,96438.0,0.05]
[1763291254469,0.01156,96445.0,96444.0,0.05]
[1763291254670,0.03095895,96445.0,96444.0,0.05]
[1763291254875,0.04651895,96445.0,96444.0,0.05]
[1763291255679,0.07244045,96445.0,96444.0,0.05]
[1763291256110,0.07244045,96445.0,96443.0,0.05]
[1763291256450,0.04288895,96444.0,96443.0,0.05]
[1763291256605,0.05844895,96444.0,96443.0,0.05]
[1763291257207,0.01939895,96444.0,96443.0,0.05]
[1763291257387,0.01156,96445.0,96430.0,0.00192]
[1763291257598,0.01156,96445.0,96444.0,0.05]
[1763291257793,0.03096897,96445.0,96444.0,0.05]
[1763291258867,0.04652897,96445.0,96444.0,0.05]
[1763291264097,0.04652897,96445.0,96439.0,0.05]
[1763291264308,0.05863021,96444.0,96439.0,0.05]
[1763291264430,0.01556,96440.0,96439.0,0.05]
[1763291268673,0.01156,96445.0,96420.0,0.01039092]
[1763291268674,0.01156,96445.0,96444.0,0.05]
[1763291269150,0.02712,96445.0,96444.0,0.05]
[1763291269362,0.04652874,96445.0,96444.0,0.05]
[1763291269878,0.04752874,96445.0,96444.0,0.05]
[1763291272373,0.03196874,96445.0,96444.0,0.05]
[1763291272793,0.04752874,96445.0,96444.0,0.05]
[1763291279336,0.04752874,96445.0,96423.0,0.01230877]
[1763291279533,0.04289874,96444.0,96423.0,0.01230877]
[1763291279740,0.01940874,96443.0,96423.0,0.01230877]
[1763291280741,0.02349,96442.0,96423.0,0.00192]
[1763291280939,0.01940874,96441.0,96423.0,0.00192]
[1763291281339,0.01940874,96441.0,96440.0,0.05]
[1763291281765,0.03595874,96441.0,96440.0,0.05]
[1763291281983,0.05944874,96441.0,96440.0,0.05]
[1763291283170,0.38244874,96441.0,96440.0,0.05]
[1763291286747,0.05944874,96441.0,96440.0,0.05]
[1763291286900,0.05944874,96441.0,96439.0,0.05]
[1763291287231,0.04296874,96440.0,96439.0,0.05]
[1763291287430,0.05951874,96440.0,96439.0,0.05]
[1763291291388,0.09067295,96440.0,96439.0,0.05]
[1763291295740,0.09067295,96440.0,96434.0,0.05]
[1763291295939,0.06722536,96439.0,96434.0,0.05]
[1763291296081,0.01619,96435.0,96434.0,0.05]
[1763291296498,0.06675295,96435.0,96434.0,0.05]
[1763291312897,0.05056295,96435.0,96434.0,0.05]
[1763291313311,0.05056295,96435.0,96419.0,0.00192]
[1763291313520,0.01940874,96434.0,96423.0,0.09881783]
[1763291314608,0.03120874,96434.0,96419.0,0.00192]
[1763291314811,0.01941242,96433.0,96422.0,0.09881783]
[1763291315540,0.03115421,96432.0,96431.0,0.05]
[1763291316675,0.05057005,96432.0,96431.0,0.05]
[1763291321919,0.06620005,96432.0,96431.0,0.05]
[1763291324598,0.06620005,96432.0,96370.0,0.0004]
[1763291324599,0.06620005,96432.0,96428.0,0.05]
[1763291324880,0.04201584,96431.0,96428.0,0.05]
[1763291325129,0.04341874,96428.0,96419.0,0.05]
[1763291325359,0.01941584,96427.0,96419.0,0.05]
[1763291325589,0.02743,96420.0,96419.0,0.05]
[1763291325805,0.04684584,96420.0,96419.0,0.05]
[1763291326301,0.07814182,96420.0,96419.0,0.05]
[1763291328193,0.05872598,96420.0,96419.0,0.05]
[1763291328454,0.07811253,96420.0,96419.0,0.05]
[1763291330093,0.36641874,96419.0,96412.0,0.00024294]
[1763291330337,0.07084874,96413.0,96412.0,0.00024294]
[1763291330556,0.09023529,96413.0,96412.0,0.00024294]
[1763291331038,0.09439073,96413.0,96412.0,0.00024294]
[1763291333136,0.07500418,96413.0,96412.0,0.00024294]
[1763291337825,0.00415544,96413.0,96412.0,0.00024294]
[1763291338001,0.00415544,96413.0,96412.0,0.05024294]
[1763291341143,0.00415544,96413.0,96412.0,0.05216294]
[1763291341610,0.00415544,96413.0,96412.0,0.05024294]
[1763291342470,0.00013513,96420.0,96412.0,0.05024294]
[1763291342789,0.00013513,96420.0,96419.0,0.05]
[1763291343377,0.0260612,96420.0,96419.0,0.05]
[1763291344826,0.0418112,96420.0,96419.0,0.05]
[1763291345042,0.0260612,96420.0,96419.0,0.05]
[1763291347557,0.04341874,96419.0,96412.0,0.00024294]
[1763291347741,0.02464361,96418.0,96413.0,0.05]
[1763291347978,0.02165636,96417.0,96413.0,0.05]
[1763291348163,0.02187461,96416.0,96413.0,0.05]
[1763291348411,0.02725,96414.0,96413.0,0.05]
[1763291349175,0.05841392,96414.0,96413.0,0.05]
[1763291353665,0.04341874,96413.0,96412.0,0.00024294]
[1763291353874,0.07853721,96413.0,96412.0,0.00024294]
[1763291354974,0.10446732,96413.0,96412.0,0.00024294]
[1763291355405,0.10546732,96413.0,96412.0,0.00024294]
[1763291356332,0.10646732,96413.0,96412.0,0.00024294]
[1763291358464,0.110623,96413.0,96412.0,0.00024294]
[1763291360008,0.110623,96413.0,96412.0,0.05024294]
[1763291360343,0.08469289,96413.0,96412.0,0.05024294]
[1763291363376,0.110623,96413.0,96412.0,0.00024294]
[1763291363806,0.433623,96413.0,96412.0,0.00024294]
[1763291363928,0.40769289,96413.0,96412.0,0.00024294]
[1763291368967,0.02552415,96413.0,96412.0,0.00024294]
[1763291369168,0.002,96413.0,96412.0,0.05024294]
[1763291370118,0.001,96413.0,96412.0,0.05024294]
[1763291370315,0.001,96413.0,96412.0,0.05216294]
[1763291370560,0.001,96413.0,96412.0,0.05124294]
[1763291370758,0.02552415,96417.0,96412.0,0.05124294]
[1763291370932,0.02552415,96417.0,96416.0,0.05]
[1763291381525,0.04085415,96417.0,96416.0,0.05]
[1763291382787,0.02552415,96417.0,96416.0,0.05]
[1763291391308,0.04085415,96417.0,96416.0,0.05]
[1763291392114,0.02552415,96417.0,96416.0,0.05]
[1763291392360,0.04085415,96417.0,96416.0,0.05]
[1763291392769,0.06020143,96417.0,96416.0,0.05]
[1763291393365,0.1023068,96417.0,96416.0,0.05]
[1763291393697,0.06120143,96417.0,96415.0,0.05]
[1763291393851,0.01934728,96416.0,96415.0,0.05]
[1763291394060,0.03467728,96416.0,96415.0,0.05]
[1763291394724,0.01934728,96416.0,96415.0,0.05]
[1763291395107,0.03567728,96416.0,96415.0,0.05]
[1763291395449,0.03467728,96416.0,96415.0,0.05]
[1763291395989,0.03567728,96416.0,96415.0,0.05]
[1763291396182,0.04649194,96416.0,96415.0,0.025]
[1763291396354,0.36641874,96415.0,96412.0,0.00024294]
[1763291396561,0.05874874,96413.0,96412.0,0.00024294]
[1763291396775,0.07809602,96413.0,96412.0,0.00024294]
[1763291397844,0.07909602,96413.0,96412.0,0.00024294]
[1763291398240,0.08009602,96413.0,96412.0,0.00024294]
[1763291399503,0.42902613,96413.0,96412.0,0.00024294]
[1763291399637,0.40309602,96413.0,96412.0,0.00024294]
[1763291399834,0.44715055,96413.0,96412.0,0.00024294]
[1763291400561,0.40309602,96413.0,96412.0,0.00024294]
[1763291404153,0.41206602,96413.0,96412.0,0.00024294]
[1763291405501,0.42172994,96413.0,96412.0,0.00024294]
[1763291405706,0.44397352,96413.0,96412.0,0.00024294]
[1763291406126,0.44297352,96413.0,96412.0,0.00024294]
[1763291406327,0.45936828,96413.0,96412.0,0.00024294]
[1763291406526,0.46136828,96413.0,96412.0,0.00024294]
[1763291407333,0.46036146,96413.0,96412.0,0.00024294]
[1763291407754,0.4439667,96413.0,96412.0,0.00024294]
[1763291407994,0.4449667,96413.0,96412.0,0.00024294]
[1763291411471,0.36962685,96413.0,96412.0,0.00024294]
[1763291411673,0.0273,96413.0,96412.0,0.00024294]
[1763291411875,0.01197,96413.0,96412.0,0.00024294]
[1763291412373,0.06813874,96413.0,96412.0,0.00024294]
[1763291412784,0.07013874,96413.0,96412.0,0.00024294]
[1763291413138,0.06913874,96413.0,96412.0,0.00024294]
[1763291413618,0.46072803,96413.0,96412.0,0.00024294]
[1763291413821,0.4800305,96413.0,96412.0,0.00024294]
[1763291414024,0.36641874,96412.0,96400.0,0.0004]
[1763291414239,0.05916874,96401.0,96400.0,0.0004]
[1763291414442,0.07847121,96401.0,96400.0,0.0004]
[1763291415011,0.42740455,96401.0,96400.0,0.0004]
[1763291415242,0.40147121,96401.0,96400.0,0.0004]
[1763291415440,0.40247121,96401.0,96400.0,0.0004]
[1763291416158,0.41244121,96401.0,96400.0,0.0004]
[1763291416504,0.45268833,96401.0,96400.0,0.0004]
[1763291416641,0.44432355,96401.0,96400.0,0.0004]
[1763291418483,0.44332355,96401.0,96400.0,0.0004]
[1763291418663,0.44232355,96401.0,96400.0,0.0004]
[1763291418886,0.44332355,96401.0,96400.0,0.0004]
[1763291419186,0.44432355,96401.0,96400.0,0.0004]
[1763291419753,0.48875591,96401.0,96400.0,0.00072397]
[1763291420587,0.38641872,96400.0,96353.0,0.01050491]
[1763291420927,0.06797874,96371.0,96353.0,0.01050491]
[1763291421254,0.06797874,96371.0,96370.0,0.00121012]
[1763291421476,0.07848365,96371.0,96370.0,0.00121012]
[1763291422151,0.07861868,96371.0,96370.0,0.00121012]
[1763291422369,0.42091414,96371.0,96370.0,0.00121012]
[1763291422826,0.42191414,96371.0,96370.0,0.00121012]
[1763291432702,0.46534355,96371.0,96370.0,0.00121012]
[1763291432946,0.42191414,96371.0,96370.0,0.00121012]
[1763291433687,0.42091414,96371.0,96370.0,0.00121012]
[1763291433885,0.42191414,96371.0,96370.0,0.00121012]
[1763291434085,0.42291414,96371.0,96370.0,0.00121012]
[1763291434285,0.43256292,96371.0,96370.0,0.00121012]
[1763291435651,0.45479243,96371.0,96370.0,0.00121012]
[1763291436364,0.45379243,96371.0,96370.0,0.00121012]
[1763291436858,0.43056292,96371.0,96370.0,0.00121012]
[1763291437280,0.43256292,96371.0,96370.0,0.00121012]
[1763291437708,0.43156292,96371.0,96370.0,0.00121012]
[1763291437969,0.43056292,96371.0,96370.0,0.00121012]
[1763291438203,0.36358418,96371.0,96370.0,0.05121012]
[1763291438433,0.3539354,96371.0,96370.0,0.05121012]
[1763291439535,0.3704954,96371.0,96370.0,0.05121012]
[1763291439913,0.41000794,96371.0,96370.0,0.05121012]
[1763291440092,0.41000794,96371.0,96370.0,0.00121012]
[1763291440093,0.46307518,96371.0,96370.0,0.00121012]
[1763291440486,0.42356264,96371.0,96370.0,0.00121012]
[1763291441161,0.42256264,96371.0,96370.0,0.00121012]
[1763291441362,0.04341874,96369.0,96353.0,9e-05]
[1763291441513,0.00999999,96320.0,96319.0,0.05]
[1763291441956,0.03880999,96320.0,96319.0,0.05137823]
[1763291442200,0.06104026,96320.0,96319.0,0.05137823]
[1763291442420,0.08033806,96320.0,96319.0,0.05137823]
[1763291442741,0.06391296,96320.0,96319.0,0.05137823]
[1763291443625,0.05166296,96320.0,96319.0,0.05137823]
[1763291445290,0.05822297,96320.0,96319.0,0.00137823]
[1763291445722,0.05822297,96320.0,96265.0,0.03119477]
[1763291445723,0.00999999,96300.0,96265.0,0.03119477]
[1763291445904,0.00999999,96300.0,96299.0,0.05]
[1763291446114,0.01225,96299.0,96298.0,0.05]
[1763291446522,0.03154078,96299.0,96298.0,0.05]
[1763291447483,0.00999999,96280.0,96252.0,0.09881783]
[1763291447686,0.00999999,96280.0,96279.0,0.05]
[1763291447885,0.02925835,96280.0,96279.0,0.05]
[1763291448130,0.04581845,96280.0,96279.0,0.05]
[1763291448266,0.39762845,96280.0,96279.0,0.05]
[1763291448654,0.39776328,96280.0,96279.0,0.05]
[1763291449445,0.39776328,96280.0,96250.0,0.10081783]
[1763291449446,0.38776329,96280.0,96278.0,0.05]
[1763291449659,0.36705846,96279.0,96278.0,0.05]
[1763291449859,0.00999999,96270.0,96250.0,0.002]
[1763291449973,0.00999999,96270.0,96269.0,0.05]
[1763291450184,0.02920426,96270.0,96269.0,0.05]
[1763291451905,0.01920427,96270.0,96269.0,0.05]
[1763291452111,0.01920427,96270.0,96269.0,0.05135244]
[1763291452332,0.01916343,96279.0,96269.0,0.00135244]
[1763291452549,0.01916343,96278.0,96277.0,0.05]
[1763291452775,0.01916343,96279.0,96250.0,0.01248249]
[1763291453011,0.01916343,96278.0,96277.0,0.05]
[1763291453232,0.01916343,96278.0,96251.0,0.01048465]
[1763291453471,0.01916343,96277.0,96276.0,0.05]
[1763291454142,0.03572343,96277.0,96276.0,0.05]
[1763291454615,0.04341874,96276.0,96250.0,0.002]
[1763291454837,0.01916343,96275.0,96269.0,0.05]
[1763291455078,0.01916343,96274.0,96269.0,0.05]
[1763291455294,0.01656,96270.0,96269.0,0.05]
[1763291455522,0.03572343,96270.0,96269.0,0.05]
[1763291456332,0.03572343,96270.0,96250.0,0.002]
[1763291456333,0.00999999,96260.0,96250.0,0.002]
[1763291456528,0.02881,96251.0,96250.0,0.052]
[1763291456780,0.04797343,96251.0,96250.0,0.052]
[1763291457031,0.05037806,96251.0,96250.0,0.052]
[1763291457244,0.01890377,96251.0,96250.0,0.052]
[1763291457944,0.01903852,96251.0,96250.0,0.052]
[1763291458450,0.01903852,96251.0,96250.0,0.05386658]
[1763291460217,0.05024825,96251.0,96250.0,0.05386658]
[1763291460422,0.01903852,96251.0,96250.0,0.05386658]
[1763291461189,0.01903852,96251.0,96250.0,0.05486658]
[1763291461632,0.01903852,96251.0,96250.0,0.05386658]
[1763291468818,0.01903852,96251.0,96250.0,0.05486658]
[1763291470351,0.01903852,96251.0,96250.0,0.05386658]
[1763291470556,0.01903852,96251.0,96250.0,0.05486658]
[1763291471072,0.01903852,96251.0,96250.0,0.05386658]
[1763291471500,0.01903852,96251.0,96250.0,0.05486658]
[1763291472502,0.01903852,96251.0,96250.0,0.06535726]
[1763291477678,0.01903852,96251.0,96250.0,0.05486658]
[1763291494931,0.01903852,96251.0,96250.0,0.05386658]
[1763291495321,0.01903852,96251.0,96250.0,0.05486658]
[1763291496219,0.03484852,96251.0,96250.0,0.05486658]
[1763291496394,0.01903852,96251.0,96250.0,0.05486658]
[1763291496822,0.01903852,96251.0,96250.0,0.05386658]
[1763291499254,0.00013475,96251.0,96250.0,0.05386658]
[1763291502580,0.00013475,96251.0,96250.0,0.00386658]
[1763291502800,0.00013475,96251.0,96250.0,0.05386658]
[1763291505108,0.01594475,96251.0,96250.0,0.05386658]
[1763291507558,0.03393475,96251.0,96250.0,0.05386658]
[1763291512721,0.03393475,96251.0,96250.0,0.00386658]
[1763291513503,0.03493475,96251.0,96250.0,0.00386658]
[1763291515839,0.01194475,96251.0,96250.0,0.05386658]
[1763291516259,0.001,96251.0,96250.0,0.05386658]
[1763291517642,0.03298999,96260.0,96250.0,0.00386658]
[1763291517839,0.03298999,96260.0,96259.0,0.05]
[1763291518249,0.04879999,96260.0,96259.0,0.05162301]
[1763291519049,0.01581,96260.0,96259.0,0.05162301]
[1763291519822,0.01681,96260.0,96259.0,0.05162301]
[1763291520442,0.01581,96260.0,96259.0,0.05162301]
[1763291520843,0.01681,96260.0,96259.0,0.05162301]
[1763291521552,0.001,96260.0,96259.0,0.05162301]
[1763291522698,0.00999999,96270.0,96259.0,0.00162301]
[1763291522823,0.00999999,96270.0,96269.0,0.05]
[1763291523245,0.04964999,96270.0,96269.0,0.05]
[1763291523459,0.02377,96270.0,96269.0,0.05]
[1763291527201,0.03965,96270.0,96269.0,0.05]
[1763291528020,0.02377,96270.0,96269.0,0.05]
[1763291528181,0.02377,96270.0,96269.0,0.05135244]
[1763291528830,0.02377,96270.0,96269.0,0.04349244]
[1763291529040,0.02377,96270.0,96269.0,0.05049244]
[1763291533843,0.03965,96270.0,96269.0,0.05049244]
[1763291534283,0.03965,96270.0,96269.0,0.00135244]
[1763291539682,0.40606874,96270.0,96269.0,0.00135244]
[1763291539890,0.42536266,96270.0,96269.0,0.00135244]